[Event "GER-ch Youth U16w 2019"]
[Site "Willingen"]
[Date "2019.06.09"]
[Round "1.9"]
[White "Wucherer, Sophie"]
[Black "Sokolowski, Judith"]
[Result "1/2-1/2"]
[ECO "D37"]
[WhiteElo "1496"]
[BlackElo "1749"]
[Annotator "NA"]
[PlyCount "88"]
[EventDate "2019.06.07"]
[EventType "swiss"]
[EventRounds "9"]
[EventCountry "GER"]
[SourceTitle "playchess.com"]
[Source "ChessBase"]
[SourceQuality "1"]
[TimeControl "40/5400+30:1800+30"]

1. d4 {[%emt 0:00:00]} d5 {[%emt 0:00:00]} 2. Nf3 {[%emt 0:00:00]} Nf6 {[%emt 0:00:00]} 3. c4 {[%emt 0:00:00]} e6 {[%emt 0:00:00]} 4. Nc3 {[%emt 0:00:07]} Nbd7 {[%emt 0:00:37]} 5. Bf4 {[%emt 0:10:50]} dxc4 {[%emt 0:00:41]} 6. e3 {[%emt 0:00:13]} Nd5 {[%emt 0:00:53]} 7. Bxc4 {[%emt 0:19:15]} Nxf4 {[%emt 0:00:55]} 8. exf4 {[%emt 0:00:06]} Nb6 {[%emt 0:01:24]} 9. Bd3 {[%emt 0:01:08]} Bd6 {[%emt 0:03:33]} 10. Ne5 {[%emt 0:01:41]} Bxe5 {[%emt 0:11:48]} 11. dxe5 {[%emt 0:02:42]} O-O {[%emt 0:09:48]} 12. Qf3 {[%emt 0:07:17]} Qe7 {[%emt 0:16:07]} 13. O-O {[%emt 0:02:34]} Rb8 {[%emt 0:13:44]} 14. Qg3 {[%emt 0:09:45]} Bd7 {[%emt 0:05:08]} 15. Ne4 {[%emt 0:02:40]} Nd5 {[%emt 0:04:25]} 16. Rac1 {[%emt 0:16:34]} Rbc8 {[%emt 0:05:54]} 17. Rc5 {[%emt 0:05:57]} f5 {[%emt 0:05:04]} 18. exf6 {[%emt 0:01:06]} Nxf6 {[%emt 0:00:18]} 19. Qh4 {[%emt 0:02:02]} Nd5 {[%emt 0:09:04]} 20. Qxe7 {[%emt 0:05:43]} Nxe7 {[%emt 0:00:03]} 21. Rfc1 {[%emt 0:00:39]} Bc6 {[%emt 0:02:27]} 22. Ng5 {[%emt 0:00:28]} g6 {[%emt 0:06:10]} 23. Nxe6 {[%emt 0:00:52]} Rf6 {[%emt 0:00:34]} 24. Bc4 {[%emt 0:00:43]} Kh8 {[%emt 0:00:42]} 25. Re1 {[%emt 0:01:07]} Nf5 {[%emt 0:01:02]} 26. g3 {[%emt 0:05:02]} Re8 {[%emt 0:01:07]} 27. Rce5 {[%emt 0:00:14]} Re7 {[%emt 0:00:48]} 28. Ng5 {[%emt 0:00:46]} Rd7 {[%emt 0:00:37]} 29. Re8+ {[%emt 0:00:19]} Kg7 {[%emt 0:00:19]} 30. Be6 {[%emt 0:02:00]} Re7 {[%emt 0:00:45]} 31. Rxe7+ {[%emt 0:00:48]} Nxe7 {[%emt 0:00:04]} 32. a3 {[%emt 0:00:57]} h6 {[%emt 0:00:28]} 33. Nh3 {[%emt 0:00:26]} Nd5 {[%emt 0:00:37]} 34. Bg4 {[%emt 0:00:54]} Nb6 {[%emt 0:00:31]} 35. Re7+ {[%emt 0:00:29]} Rf7 {[%emt 0:00:35]} 36. Re3 {[%emt 0:01:01]} Na4 {[%emt 0:00:56]} 37. b4 {[%emt 0:00:57]} Nb6 {[%emt 0:00:17]} 38. Kf1 {[%emt 0:00:27]} Nd5 {[%emt 0:00:44]} 39. Rd3 {[%emt 0:00:51]} Nf6 {[%emt 0:00:18]} 40. Be2 {[%emt 0:00:21]} Bb5 {[%emt 0:00:40]} 41. Rd2 {[%emt 0:01:35]} Bd7 {[%emt 0:06:40]} 42. Ng1 {[%emt 0:00:32]} Ne4 {[%emt 0:03:41]} 43. Rd4 {[%emt 0:02:57]} Nc3 {[%emt 0:01:51]} 44. Bf3 {[%emt 0:02:59]} Bb5+ {normal} 1/2-1/2

[Event "GER-ch Youth U16w 2019"]
[Site "Willingen"]
[Date "2019.06.09"]
[Round "1.10"]
[White "Wagner, Victoria"]
[Black "Huppert, Anna"]
[Result "1-0"]
[ECO "C00"]
[WhiteElo "1808"]
[BlackElo "1515"]
[Annotator "NA"]
[PlyCount "79"]
[EventDate "2019.06.07"]
[EventType "swiss"]
[EventRounds "9"]
[EventCountry "GER"]
[SourceTitle "playchess.com"]
[Source "ChessBase"]
[SourceQuality "1"]
[TimeControl "40/5400+30:1800+30"]

1. e4 {[%emt 0:00:00]} e6 {[%emt 0:00:00]} 2. Qe2 {[%emt 0:00:00]} Be7 {[%emt 0:00:51]} 3. Nf3 {[%emt 0:04:58]} d5 {[%emt 0:02:10]} 4. exd5 {[%emt 0:04:35]} exd5 {[%emt 0:03:11]} 5. d4 {[%emt 0:02:08]} Nf6 {[%emt 0:02:24]} 6. g3 {[%emt 0:02:24]} Nc6 {[%emt 0:03:03]} 7. Bg2 {[%emt 0:02:03]} Bf5 {[%emt 0:08:54]} 8. c3 {[%emt 0:02:58]} O-O {[%emt 0:05:31]} 9. O-O {[%emt 0:01:39]} Re8 {[%emt 0:05:20]} 10. Qd1 {[%emt 0:02:47]} Bd6 {[%emt 0:04:25]} 11. Bg5 {[%emt 0:08:20]} Re6 {[%emt 0:05:19]} 12. Nh4 {[%emt 0:06:53]} Be4 {[%emt 0:08:02]} 13. f3 {[%emt 0:06:33]} Bxb1 {[%emt 0:01:47]} 14. Rxb1 {[%emt 0:00:33]} Qd7 {[%emt 0:04:00]} 15. Bh3 {[%emt 0:03:36]} Be7 {[%emt 0:08:11]} 16. Bxe6 {[%emt 0:01:50]} Qxe6 {[%emt 0:00:39]} 17. Ng2 {[%emt 0:05:17]} Qd7 {[%emt 0:05:50]} 18. Re1 {[%emt 0:04:09]} h6 {[%emt 0:02:24]} 19. Bxf6 {[%emt 0:00:35]} Bxf6 {[%emt 0:00:28]} 20. Ne3 {[%emt 0:00:34]} Rd8 {[%emt 0:03:50]} 21. Kg2 {[%emt 0:01:38]} Ne7 {[%emt 0:04:00]} 22. Ng4 {[%emt 0:01:46]} Qd6 {[%emt 0:01:41]} 23. Qb3 {[%emt 0:03:01]} b6 {[%emt 0:03:40]} 24. Nxf6+ {[%emt 0:00:30]} Qxf6 {[%emt 0:00:28]} 25. Re5 {[%emt 0:01:18]} c6 {[%emt 0:04:05]} 26. Rbe1 {[%emt 0:02:01]} Ng6 {[%emt 0:01:05]} 27. R5e3 {[%emt 0:01:42]} Qg5 {[%emt 0:03:42]} 28. Qa4 {[%emt 0:06:20]} Qf5 {[%emt 0:05:41]} 29. Qxc6 {[%emt 0:04:09]} Kh7 {[%emt 0:02:21]} 30. Qa4 {[%emt 0:01:13]} a5 {[%emt 0:00:51]} 31. Qb3 {[%emt 0:01:28]} Rb8 {[%emt 0:00:33]} 32. Qa3 {[%emt 0:02:10]} Qd7 {[%emt 0:00:58]} 33. b3 {[%emt 0:01:27]} Rc8 {[%emt 0:00:33]} 34. Qc1 {[%emt 0:00:52]} b5 {[%emt 0:00:15]} 35. Qb1 {[%emt 0:01:57]} Kg8 {[%emt 0:00:25]} 36. Qd3 {[%emt 0:01:49]} Kh8 {[%emt 0:00:52]} 37. Qe2 {[%emt 0:00:47]} Kh7 {[%emt 0:00:29]} 38. h4 {[%emt 0:02:24]} h5 {[%emt 0:00:07]} 39. f4 {[%emt 0:04:59]} f5 {[%emt 0:00:43]} 40. Qxh5+ {[%emt 0:00:21] normal} 1-0

[Event "GER-ch Youth U16w 2019"]
[Site "Willingen"]
[Date "2019.06.09"]
[Round "1.11"]
[White "Sinnhoefer, Lilian"]
[Black "Rothenberg, Nina"]
[Result "0-1"]
[ECO "B24"]
[WhiteElo "1396"]
[BlackElo "1653"]
[Annotator "NA"]
[PlyCount "71"]
[EventDate "2019.06.07"]
[EventType "swiss"]
[EventRounds "9"]
[EventCountry "GER"]
[SourceTitle "playchess.com"]
[Source "ChessBase"]
[SourceQuality "1"]
[TimeControl "40/5400+30:1800+30"]

1. e4 {[%emt 0:00:00]} c5 {[%emt 0:00:00]} 2. Nc3 {[%emt 0:01:26]} Nc6 {[%emt 0:00:00]} 3. Nf3 {[%emt 0:01:51]} g6 {[%emt 0:01:03]} 4. Bc4 {[%emt 0:04:06]} Bg7 {[%emt 0:03:51]} 5. d3 {[%emt 0:08:37]} d6 {[%emt 0:03:12]} 6. Be3 {[%emt 0:17:50]} Nf6 {[%emt 0:05:34]} 7. Ng5 {[%emt 0:09:07]} O-O {[%emt 0:04:59]} 8. Qd2 {[%emt 0:10:26]} a6 {[%emt 0:05:45]} 9. a3 {[%emt 0:01:11]} b5 {[%emt 0:07:18]} 10. Bb3 {[%emt 0:01:45]} Nd4 {[%emt 0:05:13]} 11. Ba2 {[%emt 0:11:57]} Rb8 {[%emt 0:05:08]} 12. b4 {[%emt 0:05:08]} Ng4 {[%emt 0:10:21]} 13. O-O {[%emt 0:01:54]} Ne5 {[%emt 0:08:32]} 14. Bxd4 {[%emt 0:02:00]} cxd4 {[%emt 0:00:21]} 15. Ne2 {[%emt 0:00:56]} h6 {[%emt 0:02:03]} 16. Nf3 {[%emt 0:01:46]} Nxf3+ {[%emt 0:01:39]} 17. gxf3 {[%emt 0:00:30]} Bh3 {[%emt 0:01:39]} 18. Rfe1 {[%emt 0:01:13]} Kh7 {[%emt 0:04:48]} 19. Rad1 {[%emt 0:01:57]} Rc8 {[%emt 0:03:49]} 20. Bb3 {[%emt 0:02:27]} e5 {[%emt 0:06:17]} 21. Ng3 {[%emt 0:01:12]} h5 {[%emt 0:02:49]} 22. f4 {[%emt 0:01:10]} Bh6 {[%emt 0:00:33]} 23. f3 {[%emt 0:02:24]} Bxf4 {[%emt 0:00:15]} 24. Qe2 {[%emt 0:01:46]} Qg5 {[%emt 0:02:03]} 25. Kh1 {[%emt 0:01:41]} Be3 {[%emt 0:01:29]} 26. Rg1 {[%emt 0:01:38]} Bxg1 {[%emt 0:00:26]} 27. Rxg1 {[%emt 0:00:15]} Qf6 {[%emt 0:00:37]} 28. Nf1 {[%emt 0:01:13]} Be6 {[%emt 0:01:39]} 29. Nd2 {[%emt 0:01:36]} Rc7 {[%emt 0:02:01]} 30. Bxe6 {[%emt 0:01:00]} fxe6 {[%emt 0:01:30]} 31. Rc1 {[%emt 0:01:44]} Qf4 {[%emt 0:03:05]} 32. Kg2 {[%emt 0:00:33]} Rfc8 {[%emt 0:03:48]} 33. Qd1 {[%emt 0:02:25]} d5 {[%emt 0:00:36]} 34. h3 {[%emt 0:00:52]} Rc3 {[%emt 0:00:19]} 35. exd5 {[%emt 0:01:17]} exd5 {[%emt 0:00:08]} 36. Kg1 {[%emt 0:00:33] normal} 0-1

[Event "GER-ch Youth U16w 2019"]
[Site "Willingen"]
[Date "2019.06.09"]
[Round "1.12"]
[White "Klemke, Kassandra"]
[Black "Genova, Magdalina"]
[Result "1-0"]
[ECO "B98"]
[WhiteElo "1662"]
[BlackElo "1421"]
[Annotator "NA"]
[PlyCount "101"]
[EventDate "2019.06.07"]
[EventType "swiss"]
[EventRounds "9"]
[EventCountry "GER"]
[SourceTitle "playchess.com"]
[Source "ChessBase"]
[SourceQuality "1"]
[TimeControl "40/5400+30:1800+30"]

1. e4 {[%emt 0:00:00]} c5 {[%emt 0:00:00]} 2. Nf3 {[%emt 0:00:00]} d6 {[%emt 0:00:00]} 3. d4 {[%emt 0:00:00]} cxd4 4. Nxd4 {[%emt 0:00:00]} Nf6 {[%emt 0:00:52]} 5. Nc3 {[%emt 0:00:01]} a6 {[%emt 0:00:26]} 6. Bg5 {[%emt 0:00:43]} e6 {[%emt 0:00:32]} 7. f4 {[%emt 0:00:38]} Be7 8. Qf3 {[%emt 0:01:26]} Qc7 {[%emt 0:26:54]} 9. O-O-O {[%emt 0:03:09]} h6 {[%emt 0:08:10]} 10. Bh4 {[%emt 0:03:19]} b5 {[%emt 0:03:48]} 11. Bd3 {[%emt 0:07:27]} Bb7 {[%emt 0:05:25]} 12. Rhe1 {[%emt 0:26:54]} Nbd7 {[%emt 0:05:40]} 13. Qg3 {[%emt 0:07:50]} O-O {[%emt 0:08:23]} 14. e5 {[%emt 0:29:15]} dxe5 {[%emt 0:16:47]} 15. fxe5 {[%emt 0:00:07]} Nd5 {[%emt 0:00:15]} 16. Nxd5 {[%emt 0:02:17]} Bxh4 {[%emt 0:00:49]} 17. Nxc7 {[%emt 0:00:37]} Bxg3 {[%emt 0:00:05]} 18. hxg3 {[%emt 0:00:49]} Rac8 {[%emt 0:07:35]} 19. Nxa6 {[%emt 0:00:41]} Bxa6 {[%emt 0:01:58]} 20. Bxb5 {[%emt 0:00:08]} Nc5 {[%emt 0:00:16]} 21. Bxa6 {[%emt 0:01:36]} Nxa6 {[%emt 0:00:05]} 22. a3 {[%emt 0:01:21]} Rc7 {[%emt 0:02:02]} 23. Nb5 {[%emt 0:02:25]} Rc6 {[%emt 0:00:58]} 24. Nd6 {[%emt 0:00:57]} Rb8 {[%emt 0:00:26]} 25. Rf1 {[%emt 0:02:24]} Rc7 {[%emt 0:00:27]} 26. Rf3 {[%emt 0:01:28]} Nc5 {[%emt 0:04:13]} 27. Kb1 {[%emt 0:01:48]} Na4 {[%emt 0:00:12]} 28. Rb3 {[%emt 0:02:36]} Rxb3 {[%emt 0:02:35]} 29. cxb3 {[%emt 0:00:08]} Nb6 {[%emt 0:00:14]} 30. Rc1 {[%emt 0:01:33]} Ra7 {[%emt 0:00:27]} 31. Nc8 {[%emt 0:00:23]} Rb7 {[%emt 0:01:03]} 32. Nxb6 {[%emt 0:00:06]} Rxb6 {[%emt 0:00:04]} 33. b4 {[%emt 0:00:12]} Kf8 {[%emt 0:00:13]} 34. Rc4 {[%emt 0:00:45]} Rb5 {[%emt 0:00:29]} 35. Rc5 {[%emt 0:00:21]} Rb7 {[%emt 0:00:08]} 36. Kc2 {[%emt 0:00:11]} Rd7 {[%emt 0:00:52]} 37. b5 {[%emt 0:00:38]} f6 {[%emt 0:00:59]} 38. b6 {[%emt 0:01:33]} Rb7 {[%emt 0:00:16]} 39. Rb5 {[%emt 0:02:34]} fxe5 {[%emt 0:00:07]} 40. a4 {[%emt 0:00:19]} e4 {[%emt 0:01:39]} 41. a5 {[%emt 0:30:11]} e3 {[%emt 0:30:04]} 42. Re5 {[%emt 0:00:32]} Ke7 {[%emt 0:01:18]} 43. Rxe3 {[%emt 0:00:29]} Kd6 {[%emt 0:03:07]} 44. b4 {[%emt 0:00:26]} Kc6 {[%emt 0:00:45]} 45. Rxe6+ {[%emt 0:00:11]} Kb5 {[%emt 0:01:00]} 46. Kb3 {[%emt 0:00:25]} Rd7 {[%emt 0:00:00]} 47. Re5+ {[%emt 0:00:00]} Ka6 {[%emt 0:00:00]} 48. Rc5 {[%emt 0:00:00]} Kb7 {[%emt 0:00:00]} 49. Rc7+ {[%emt 0:00:00]} Rxc7 {[%emt 0:00:00]} 50. bxc7 {[%emt 0:00:00]} Kxc7 {[%emt 0:00:00]} 51. Kc4 {[%emt 0:00:00] normal} 1-0

[Event "GER-ch Youth U16w 2019"]
[Site "Willingen"]
[Date "2019.06.09"]
[Round "1.13"]
[White "Zell, Hannah"]
[Black "Ziegenfuss, Larissa"]
[Result "1/2-1/2"]
[ECO "B20"]
[WhiteElo "1473"]
[BlackElo "1771"]
[Annotator "NA"]
[PlyCount "102"]
[EventDate "2019.06.07"]
[EventType "swiss"]
[EventRounds "9"]
[EventCountry "GER"]
[SourceTitle "playchess.com"]
[Source "ChessBase"]
[SourceQuality "1"]
[TimeControl "40/5400+30:1800+30"]

1. e4 {[%emt 0:00:00]} c5 {[%emt 0:00:00]} 2. b3 {[%emt 0:00:00]} Nc6 {[%emt 0:02:41]} 3. Nc3 {[%emt 0:03:09]} e6 {[%emt 0:08:52]} 4. Bb2 {[%emt 0:08:00]} a6 {[%emt 0:04:32]} 5. a4 {[%emt 0:01:37]} Nf6 {[%emt 0:03:44]} 6. Nf3 {[%emt 0:05:03]} d6 {[%emt 0:04:50]} 7. Be2 {[%emt 0:05:43]} Be7 {[%emt 0:05:05]} 8. d3 {[%emt 0:04:36]} Qc7 {[%emt 0:05:47]} 9. O-O {[%emt 0:04:33]} O-O {[%emt 0:02:15]} 10. d4 {[%emt 0:14:56]} cxd4 {[%emt 0:05:49]} 11. Nxd4 {[%emt 0:01:41]} Nxd4 {[%emt 0:03:47]} 12. Qxd4 {[%emt 0:00:59]} b6 {[%emt 0:12:59]} 13. Ba3 {[%emt 0:13:06]} e5 {[%emt 0:10:59]} 14. Qd2 {[%emt 0:05:01]} Bb7 {[%emt 0:02:09]} 15. f3 {[%emt 0:03:18]} Rac8 {[%emt 0:03:04]} 16. Bc4 {[%emt 0:09:37]} Rfd8 {[%emt 0:06:11]} 17. Rfd1 {[%emt 0:01:46]} Bf8 {[%emt 0:03:45]} 18. Nd5 {[%emt 0:05:47]} Nxd5 {[%emt 0:02:25]} 19. exd5 {[%emt 0:00:18]} g6 {[%emt 0:01:20]} 20. Ra2 {[%emt 0:01:30]} Bg7 {[%emt 0:01:19]} 21. Be2 {[%emt 0:01:51]} f5 {[%emt 0:02:08]} 22. c4 {[%emt 0:00:54]} a5 {[%emt 0:00:57]} 23. Bd3 {[%emt 0:00:51]} Re8 {[%emt 0:01:04]} 24. Re1 {[%emt 0:01:03]} Re7 {[%emt 0:00:37]} 25. Re2 {[%emt 0:00:43]} Rce8 {[%emt 0:00:20]} 26. Qe1 {[%emt 0:00:56]} Bc8 {[%emt 0:00:40]} 27. h3 {[%emt 0:01:45]} Bh6 {[%emt 0:00:53]} 28. Kh2 {[%emt 0:01:27]} Bf4+ {[%emt 0:00:59]} 29. g3 {[%emt 0:00:15]} Bg5 {[%emt 0:00:26]} 30. Ra1 {[%emt 0:01:48]} f4 {[%emt 0:01:19]} 31. g4 {[%emt 0:00:15]} Qd7 {[%emt 0:00:40]} 32. Be4 {[%emt 0:00:27]} Rf7 {[%emt 0:00:51]} 33. Kg1 {[%emt 0:01:44]} Qd8 {[%emt 0:01:01]} 34. Rh2 {[%emt 0:00:19]} Bh4 {[%emt 0:00:29]} 35. Qe2 {[%emt 0:00:06]} Kg7 {[%emt 0:00:54]} 36. Kg2 {[%emt 0:00:51]} Rh8 {[%emt 0:00:54]} 37. Bd3 {[%emt 0:01:08]} Qe7 {[%emt 0:00:50]} 38. Qe4 {[%emt 0:00:42]} Qf6 {[%emt 0:00:42]} 39. Kf1 {[%emt 0:00:53]} Bg3 {[%emt 0:00:33]} 40. Rh1 {[%emt 0:00:10]} h5 {[%emt 0:01:23]} 41. Kg2 {[%emt 0:04:30]} Rd7 {[%emt 0:05:17]} 42. Bc2 {[%emt 0:02:26]} Rdd8 {[%emt 0:00:58]} 43. Rab1 {[%emt 0:01:51]} Rh6 {[%emt 0:01:28]} 44. Rbg1 {[%emt 0:12:27]} hxg4 {[%emt 0:02:05]} 45. hxg4 {[%emt 0:04:31]} Rdh8 {[%emt 0:01:42]} 46. Rxh6 {[%emt 0:02:18]} Rxh6 {[%emt 0:00:08]} 47. Kf1 {[%emt 0:00:32]} Rh2 {[%emt 0:04:27]} 48. Rg2 {[%emt 0:00:28]} Rxg2 {[%emt 0:02:48]} 49. Kxg2 {[%emt 0:00:07]} Bd7 {[%emt 0:05:27]} 50. Kf1 {[%emt 0:02:36]} Be8 {[%emt 0:00:25]} 51. Ke2 {[%emt 0:02:09]} Bh4 {[%emt 0:01:48] normal} 1/2-1/2

[Event "GER-ch Youth U16w 2019"]
[Site "Willingen"]
[Date "2019.06.09"]
[Round "2.1"]
[White "Muedder, Melanie"]
[Black "Rudolph, Eva"]
[Result "1-0"]
[ECO "C42"]
[WhiteElo "1912"]
[BlackElo "1786"]
[Annotator "NA"]
[PlyCount "51"]
[EventDate "2019.06.07"]
[EventType "swiss"]
[EventRounds "9"]
[EventCountry "GER"]
[SourceTitle "playchess.com"]
[Source "ChessBase"]
[SourceQuality "1"]
[TimeControl "40/5400+30:1800+30"]

1. e4 {[%emt 0:00:00]} e5 {[%emt 0:00:00]} 2. Nf3 {[%emt 0:00:00]} Nf6 {[%emt 0:00:00]} 3. Nxe5 {[%emt 0:00:00]} d6 {[%emt 0:00:04]} 4. Nf3 {[%emt 0:00:00]} Nxe4 {[%emt 0:00:06]} 5. Nc3 {[%emt 0:00:17]} Nxc3 {[%emt 0:00:33]} 6. dxc3 {[%emt 0:00:12]} Be7 {[%emt 0:00:07]} 7. Be3 {[%emt 0:00:12]} Nc6 {[%emt 0:00:17]} 8. Bd3 {[%emt 0:00:28]} Be6 {[%emt 0:00:56]} 9. Qe2 {[%emt 0:00:25]} Qd7 {[%emt 0:02:31]} 10. O-O-O {[%emt 0:00:17]} Bf6 {[%emt 0:03:34]} 11. Kb1 {[%emt 0:05:06]} a6 {[%emt 0:07:51]} 12. h3 {[%emt 0:07:17]} O-O-O {[%emt 0:04:32]} 13. Bxa6 {[%emt 0:17:24]} bxa6 {[%emt 0:12:28]} 14. Qxa6+ {[%emt 0:00:17]} Kb8 {[%emt 0:00:06]} 15. c4 {[%emt 0:07:20]} Bf5 {[%emt 0:08:38]} 16. Rd5 {[%emt 0:02:48]} Bxc2+ {[%emt 0:14:16]} 17. Ka1 {[%emt 0:07:56]} Nd4 {[%emt 0:06:54]} 18. Nxd4 {[%emt 0:06:33]} Bxd4 {[%emt 0:12:32]} 19. Rb5+ {[%emt 0:02:30]} Qxb5 {[%emt 0:00:50]} 20. Qxb5+ {[%emt 0:00:23]} Bb6 {[%emt 0:00:11]} 21. Bxb6 {[%emt 0:00:22]} cxb6 {[%emt 0:00:05]} 22. Qxb6+ {[%emt 0:00:09]} Ka8 {[%emt 0:00:23]} 23. Re1 {[%emt 0:01:06]} Rd7 {[%emt 0:00:58]} 24. Qc6+ {[%emt 0:00:16]} Rb7 {[%emt 0:00:04]} 25. Re7 {[%emt 0:00:52]} Rhb8 {[%emt 0:00:08]} 26. Qa6+ {[%emt 0:00:08] normal} 1-0

[Event "GER-ch Youth U16w 2019"]
[Site "Willingen"]
[Date "2019.06.09"]
[Round "2.2"]
[White "Brunner, Sophia"]
[Black "Bui, Ngoc Han Julia"]
[Result "1/2-1/2"]
[ECO "A49"]
[WhiteElo "1839"]
[BlackElo "1973"]
[Annotator "NA"]
[PlyCount "40"]
[EventDate "2019.06.07"]
[EventType "swiss"]
[EventRounds "9"]
[EventCountry "GER"]
[SourceTitle "playchess.com"]
[Source "ChessBase"]
[SourceQuality "1"]
[TimeControl "40/5400+30:1800+30"]

1. d4 {[%emt 0:00:00]} Nf6 {[%emt 0:00:00]} 2. Nf3 {[%emt 0:00:00]} g6 {[%emt 0:00:00]} 3. g3 {[%emt 0:00:00]} Bg7 {[%emt 0:00:00]} 4. Bg2 {[%emt 0:00:08]} O-O {[%emt 0:00:45]} 5. O-O {[%emt 0:00:18]} d6 {[%emt 0:01:03]} 6. c4 {[%emt 0:02:09]} Nfd7 {[%emt 0:03:13]} 7. d5 {[%emt 0:13:40]} Nb6 {[%emt 0:15:58]} 8. Qc2 {[%emt 0:16:23]} c6 {[%emt 0:02:55]} 9. Rd1 {[%emt 0:06:56]} Qc7 {[%emt 0:02:49]} 10. Qb3 {[%emt 0:06:57]} N8d7 {[%emt 0:07:28]} 11. Be3 {[%emt 0:05:39]} cxd5 {[%emt 0:06:00]} 12. cxd5 {[%emt 0:02:59]} Qc4 {[%emt 0:05:52]} 13. Nbd2 {[%emt 0:23:42]} Qxb3 {[%emt 0:08:49]} 14. Nxb3 {[%emt 0:00:02]} Nc4 {[%emt 0:07:57]} 15. Bd4 {[%emt 0:01:28]} Nxb2 {[%emt 0:02:20]} 16. Bxg7 {[%emt 0:00:34]} Kxg7 {[%emt 0:03:09]} 17. Rd4 {[%emt 0:01:26]} b5 {[%emt 0:03:51]} 18. Na5 {[%emt 0:02:03]} Ba6 {[%emt 0:07:56]} 19. Rb4 {[%emt 0:03:39]} Na4 {[%emt 0:01:18]} 20. Nd4 {[%emt 0:00:24]} Nf6 {[%emt 0:06:05] normal} 1/2-1/2

[Event "GER-ch Youth U16w 2019"]
[Site "Willingen"]
[Date "2019.06.09"]
[Round "2.3"]
[White "Wagner, Victoria"]
[Black "Khamenya, Vitalia"]
[Result "1-0"]
[ECO "C50"]
[WhiteElo "1808"]
[BlackElo "1877"]
[Annotator "NA"]
[PlyCount "61"]
[EventDate "2019.06.07"]
[EventType "swiss"]
[EventRounds "9"]
[EventCountry "GER"]
[SourceTitle "playchess.com"]
[Source "ChessBase"]
[SourceQuality "1"]
[TimeControl "40/5400+30:1800+30"]

1. e4 {[%emt 0:00:00]} e5 {[%emt 0:00:00]} 2. Nf3 {[%emt 0:00:00]} Nc6 {[%emt 0:00:00]} 3. Bc4 {[%emt 0:00:01]} Bc5 {[%emt 0:00:00]} 4. O-O {[%emt 0:01:28]} Nf6 {[%emt 0:00:00]} 5. d3 {[%emt 0:00:09]} d6 {[%emt 0:00:27]} 6. c3 {[%emt 0:00:54]} O-O {[%emt 0:01:45]} 7. a4 {[%emt 0:02:07]} a6 {[%emt 0:00:07]} 8. h3 {[%emt 0:01:44]} h6 {[%emt 0:01:13]} 9. Re1 {[%emt 0:02:17]} Ba7 {[%emt 0:01:01]} 10. Nbd2 {[%emt 0:03:17]} Ne7 {[%emt 0:00:41]} 11. Nf1 {[%emt 0:06:19]} Ng6 {[%emt 0:06:19]} 12. Ng3 {[%emt 0:06:10]} Re8 {[%emt 0:06:05]} 13. Qc2 {[%emt 0:09:30]} Be6 {[%emt 0:04:01]} 14. Bxe6 {[%emt 0:05:55]} Rxe6 {[%emt 0:01:08]} 15. Nf5 {[%emt 0:04:13]} Nh5 {[%emt 0:04:10]} 16. d4 {[%emt 0:07:45]} Nhf4 {[%emt 0:13:05]} 17. Kh2 {[%emt 0:04:11]} Re8 {[%emt 0:00:49]} 18. g3 {[%emt 0:06:40]} Ne6 {[%emt 0:00:42]} 19. d5 {[%emt 0:04:15]} Nef8 {[%emt 0:00:53]} 20. Bd2 {[%emt 0:02:18]} Ne7 {[%emt 0:23:43]} 21. Nxe7+ {[%emt 0:04:17]} Qxe7 {[%emt 0:00:39]} 22. Rf1 {[%emt 0:01:15]} Ng6 {[%emt 0:00:41]} 23. Qc1 {[%emt 0:02:01]} Kh7 {[%emt 0:02:05]} 24. h4 {[%emt 0:01:16]} Qd7 {[%emt 0:02:09]} 25. Qd1 {[%emt 0:01:58]} Kg8 {[%emt 0:01:19]} 26. h5 {[%emt 0:01:47]} Ne7 {[%emt 0:02:00]} 27. Nh4 {[%emt 0:00:58]} Kh7 {[%emt 0:03:55]} 28. f4 {[%emt 0:01:32]} exf4 {[%emt 0:01:26]} 29. Rxf4 {[%emt 0:01:57]} Ng8 {[%emt 0:00:46]} 30. Qf3 {[%emt 0:02:19]} Nf6 {[%emt 0:00:48]} 31. Nf5 {[%emt 0:04:19] normal} 1-0

[Event "GER-ch Youth U16w 2019"]
[Site "Willingen"]
[Date "2019.06.09"]
[Round "2.4"]
[White "Bardorz, Jana"]
[Black "Klemke, Kassandra"]
[Result "1-0"]
[ECO "B90"]
[WhiteElo "1769"]
[BlackElo "1662"]
[Annotator "NA"]
[PlyCount "26"]
[EventDate "2019.06.07"]
[EventType "swiss"]
[EventRounds "9"]
[EventCountry "GER"]
[SourceTitle "playchess.com"]
[Source "ChessBase"]
[SourceQuality "1"]
[TimeControl "40/5400+30:1800+30"]

1. e4 {[%emt 0:00:00]} c5 {[%emt 0:00:00]} 2. Nf3 {[%emt 0:00:00]} d6 {[%emt 0:00:00]} 3. d4 {[%emt 0:00:00]} cxd4 {[%emt 0:00:00]} 4. Nxd4 {[%emt 0:00:00]} Nf6 {[%emt 0:00:00]} 5. Nc3 {[%emt 0:00:01]} a6 {[%emt 0:00:01]} 6. Bd3 {[%emt 0:01:11]} e6 {[%emt 0:01:06]} 7. O-O {[%emt 0:01:10]} Qc7 {[%emt 0:01:39]} 8. Kh1 {[%emt 0:03:44]} b5 {[%emt 0:02:05]} 9. f4 {[%emt 0:06:16]} Bb7 {[%emt 0:00:37]} 10. a3 {[%emt 0:05:22]} Nbd7 {[%emt 0:02:45]} 11. Qf3 {[%emt 0:06:28]} Nc5 {[%emt 0:03:46]} 12. Be3 {[%emt 0:05:18]} d5 {[%emt 0:22:04]} 13. e5 {[%emt 0:04:20]} Nfe4 {[%emt 0:07:52] normal} 1-0

[Event "GER-ch Youth U16w 2019"]
[Site "Willingen"]
[Date "2019.06.09"]
[Round "2.5"]
[White "Rothenberg, Nina"]
[Black "Basovskiy, Jana"]
[Result "1-0"]
[ECO "B23"]
[WhiteElo "1653"]
[BlackElo "1761"]
[Annotator "NA"]
[PlyCount "62"]
[EventDate "2019.06.07"]
[EventType "swiss"]
[EventRounds "9"]
[EventCountry "GER"]
[SourceTitle "playchess.com"]
[Source "ChessBase"]
[SourceQuality "1"]
[TimeControl "40/5400+30:1800+30"]

1. e4 {[%emt 0:00:00]} c5 {[%emt 0:00:00]} 2. Nc3 {[%emt 0:00:00]} e6 {[%emt 0:00:00]} 3. g3 {[%emt 0:00:00]} Nc6 {[%emt 0:00:00]} 4. Bg2 {[%emt 0:00:00]} Nf6 {[%emt 0:00:41]} 5. d3 {[%emt 0:01:04]} Be7 {[%emt 0:00:56]} 6. f4 {[%emt 0:00:22]} d5 {[%emt 0:00:33]} 7. e5 {[%emt 0:00:45]} Nd7 {[%emt 0:00:10]} 8. Nf3 {[%emt 0:01:14]} Rb8 {[%emt 0:05:17]} 9. a4 {[%emt 0:04:57]} a6 {[%emt 0:00:37]} 10. O-O {[%emt 0:03:16]} O-O {[%emt 0:02:52]} 11. d4 {[%emt 0:04:10]} cxd4 {[%emt 0:02:33]} 12. Ne2 {[%emt 0:03:13]} Bc5 {[%emt 0:07:15]} 13. Nfxd4 {[%emt 0:03:37]} b5 {[%emt 0:05:34]} 14. axb5 {[%emt 0:03:04]} axb5 {[%emt 0:03:37]} 15. Kh1 {[%emt 0:02:57]} Nxd4 {[%emt 0:06:52]} 16. Nxd4 {[%emt 0:01:57]} Qb6 {[%emt 0:00:07]} 17. Nb3 {[%emt 0:03:34]} Be7 {[%emt 0:03:52]} 18. Qe2 {[%emt 0:03:26]} Nc5 {[%emt 0:07:41]} 19. Be3 {[%emt 0:05:46]} Qc7 {[%emt 0:01:24]} 20. Nd4 {[%emt 0:06:34]} Bd7 {[%emt 0:02:51]} 21. Ra2 {[%emt 0:03:00]} Na4 {[%emt 0:06:10]} 22. Rfa1 {[%emt 0:03:05]} Rfc8 {[%emt 0:02:25]} 23. Qd2 {[%emt 0:02:25]} Nb6 {[%emt 0:11:43]} 24. b3 {[%emt 0:01:42]} Rb7 {[%emt 0:05:06]} 25. Bf1 {[%emt 0:01:47]} Bc5 {[%emt 0:16:07]} 26. Nxb5 {[%emt 0:01:23]} Bxe3 {[%emt 0:00:58]} 27. Qxe3 {[%emt 0:00:13]} Bxb5 {[%emt 0:00:03]} 28. Bxb5 {[%emt 0:00:16]} Rbb8 {[%emt 0:00:53]} 29. Bd3 {[%emt 0:03:21]} g6 {[%emt 0:02:33]} 30. Qd4 {[%emt 0:03:35]} Nd7 {[%emt 0:03:23]} 31. Ra7 {[%emt 0:01:47]} Qc5 {[%emt 0:00:07] normal} 1-0